{"text_format":"1","workbook":"xlsx","n_sheets":7,"sheets":["Instruction","1 - Ident","2 - Income","3 - Expenses","4 - Summary","RC4060 Codes","Properties (Data)"],"not_rendered":{"charts":0,"images":2,"macros":1,"external_links":0,"defined_names":16,"comments":0,"pivot_tables":0},"unopened":[],"bounds":{"document_bytes":16777216,"sheet_cells":100000,"rows_first":2000,"rows_last":500,"rows_between":2000,"halvings":0,"cell_chars":16384,"cell_head_chars":4096},"cells_cut":0,"cells_raw":0,"read":"whole","date_system":"1900"}

{"sheet":"Instruction","index":0,"n_rows":47,"n_cols":9,"rows_kept":47,"cut":false,"hidden":false,"merged":[]}
[null,null,null,null,null,null,null,null,"Hide here and after"]
[]
[]
[]
[]
[]
[]
[]
[]
[]
[]
[]
[]
[]
[]
[]
[]
[]
[]
[]
[]
[]
[]
[]
[]
[]
[]
[]
[]
[]
[]
[]
[]
[]
[]
[]
[]
[]
[]
[]
[]
[]
[]
[]
[]
[]
["Hide here and after"]

{"sheet":"1 - Ident","index":1,"n_rows":46,"n_cols":84,"rows_kept":46,"cut":false,"hidden":false,"merged":[[0,51,0,69],[33,0,35,69],[37,0,41,69],[43,0,44,69],[24,0,24,69],[1,0,5,6],[31,0,31,69],[16,18,16,23],[13,0,13,26],[12,0,12,26],[12,58,12,69],[8,67,8,69],[8,62,8,64],[8,65,8,66],[8,60,8,61],[15,45,15,69],[14,45,14,69],[14,27,14,44],[15,27,15,44],[14,0,14,26],[15,0,15,26],[28,45,28,69],[29,45,29,69],[28,27,28,44],[28,0,28,26],[29,0,29,26],[29,27,29,34],[20,20,20,30],[20,31,20,57],[17,38,17,45],[17,0,17,16],[17,17,17,23],[17,49,17,55],[19,0,21,19],[2,57,2,62],[7,0,9,48],[7,50,9,59],[13,58,13,69],[12,45,12,57],[13,45,13,57],[12,27,12,44],[13,27,13,44],[2,63,2,64],[2,65,2,66],[2,67,2,68],[1,7,2,56],[10,0,10,69],[11,0,11,69],[3,7,5,56],[16,47,16,49],[27,45,27,57],[27,58,27,69],[16,50,16,55],[20,58,20,68],[23,0,23,69],[25,0,25,69],[26,0,26,26],[26,27,26,44],[26,45,26,57],[26,58,26,69],[27,27,27,44],[27,0,27,26],[16,0,16,17],[16,38,16,46],[17,26,17,30]]}
[null,null,null,null,null,null,null,null,null,null,null,null,null,null,null,null,null,null,null,null,null,null,null,null,null,null,null,null,null,null,null,null,null,null,null,null,null,null,null,null,null,null,null,null,null,null,null,null,null,null,null,null,null,null,null,null,null,null,null,null,null,null,null,null,null,null,null,null,null,null,null,null,null,null,null,null,null,null,null,null,null,null,null,"Hide here and after"]
["AgriStability AgriInvest",null,null,null,null,null,null,{"$f":"TaxYear & \" \" & \"Statement A\"","v":"2022 Statement A"}]
[null,null,null,null,null,null,null,null,null,null,null,null,null,null,null,null,null,null,null,null,null,null,null,null,null,null,null,null,null,null,null,null,null,null,null,null,null,null,null,null,null,null,null,null,null,null,null,null,null,null,null,null,null,null,null,null,null,"Operation ",null,null,null,null,null,null,null,"of"]
[null,null,null,null,null,null,null," Alberta Corporations/Co-operatives/Other Entities"]
[]
[]
[]
["Participant Information",null,null,null,null,null,null,null,null,null,null,null,null,null,null,null,null,null,null,null,null,null,null,null,null,null,null,null,null,null,null,null,null,null,null,null,null,null,null,null,null,null,null,null,null,null,null,null,null,null,"AgriInvest Only"]
[null,null,null,null,null,null,null,null,null,null,null,null,null,null,null,null,null,null,null,null,null,null,null,null,null,null,null,null,null,null,null,null,null,null,null,null,null,null,null,null,null,null,null,null,null,null,null,null,null,null,null,null,null,null,null,null,null,null,null,null,null,null,"Yes",null,null,null,null,"No"]
[]
["Name"]
[]
["Address",null,null,null,null,null,null,null,null,null,null,null,null,null,null,null,null,null,null,null,null,null,null,null,null,null,null,"Town/City",null,null,null,null,null,null,null,null,null,null,null,null,null,null,null,null,null,"Province",null,null,null,null,null,null,null,null,null,null,null,null,"Postal Code"]
[]
["Telephone (days)",null,null,null,null,null,null,null,null,null,null,null,null,null,null,null,null,null,null,null,null,null,null,null,null,null,null,"Fax Number",null,null,null,null,null,null,null,null,null,null,null,null,null,null,null,null,null,"E-mail Address"]
[]
["Participant Identification Number (PIN):",null,null,null,null,null,null,null,null,null,null,null,null,null,null,null,null,null,null,null,null,null,null,null,null,null,null,null,null,null,null,null,null,null,null,null,null,null,"AFSC ID Number:",null,null,null,null,null,null,null,null,870]
["CRA Business Number:",null,null,null,null,null,null,null,null,null,null,null,null,null,null,null,null,null,null,null,null,null,null,null,"R","C",null,null,null,null,null,null,null,null,null,null,null,null,"Trust Number:",null,null,null,null,null,null,null,null,"T"]
[]
["Province/territory of main farmstead: "]
[null,null,null,null,null,null,null,null,null,null,null,null,null,null,null,null,null,null,null,null,null,null,null,null,null,null,null,null,null,null,null,"Province of main residence as of December 31, 2022:"]
[]
[]
["Form Prepared By"]
["Name"]
[]
["Address",null,null,null,null,null,null,null,null,null,null,null,null,null,null,null,null,null,null,null,null,null,null,null,null,null,null,"Town/City",null,null,null,null,null,null,null,null,null,null,null,null,null,null,null,null,null,"Province",null,null,null,null,null,null,null,null,null,null,null,null,"Postal Code"]
[]
["Telephone (days)",null,null,null,null,null,null,null,null,null,null,null,null,null,null,null,null,null,null,null,null,null,null,null,null,null,null,"Fax Number",null,null,null,null,null,null,null,null,null,null,null,null,null,null,null,null,null,"E-mail Address"]
[]
[]
["Freedom of Information and Protection of Privacy Act"]
[]
["This information on this form and any information you provide to us in the future related to this form is collected under the authority of the Agriculture Financial Services Act and the Freedom of Information and Protection of Privacy Act (the “FOIP Act”). The collected information, whether personal information or business information, will be used: (i) to evaluate your eligibility for the program to which this form relates; (ii) for the administration of the program; and/or (iii) for the administration of any other AFSC program or benefit in which you participate. Your personal information is subject to the provisions of the FOIP Act. "]
[]
[]
[]
["By submitting this form below, you are providing consent to AFSC disclosing and sharing the information contained in this form, whether personal information or business information, or any other information that will be provided in the future by you or your authorized representative, to the following third parties: Alberta Agriculture and Forestry, Agriculture and Agri-Food Canada, Canada Revenue Agency and Statistics Canada. You consent that such disclosed and shared personal information and business information may be used in the following ways: (i) for the administration of all current and future AFSC federal and provincial programs related to Agriculture, AFSC lending programs and AFSC insurance programs; (ii) for AFSC, federal and provincial policy and program development; (iii) AFSC, federal and provincial policy and program evaluation; (iv) for research and statistical development; and (v) for statistical purposes. "]
[]
[]
[]
[]
[]
["If you have any questions about this form and the collection and use of your information, please contact the AFSC Contact Centre, 5718 – 56 Avenue, Lacombe, AB T4L 1B1, 1-877-899-2372."]
[]
["Hide here and after"]

{"sheet":"2 - Income","index":2,"n_rows":50,"n_cols":91,"rows_kept":50,"cut":false,"hidden":false,"merged":[[46,68,47,77],[47,0,47,22],[47,23,47,26],[47,28,47,37],[48,70,48,77],[45,0,45,22],[45,23,45,26],[45,27,45,37],[45,39,45,66],[45,68,45,77],[46,0,46,22],[46,23,46,26],[46,27,46,37],[46,39,47,66],[46,67,47,67],[43,0,43,22],[43,23,43,26],[43,27,43,37],[43,39,43,77],[44,0,44,22],[44,23,44,26],[44,27,44,37],[44,39,44,66],[44,68,44,77],[41,0,41,22],[41,23,41,26],[41,27,41,37],[41,39,41,66],[41,68,41,77],[42,0,42,22],[42,23,42,26],[42,27,42,37],[40,0,40,22],[40,23,40,26],[40,27,40,37],[40,39,40,62],[40,63,40,66],[40,67,40,77],[39,0,39,22],[39,23,39,26],[39,27,39,37],[39,39,39,62],[39,63,39,66],[39,67,39,77],[38,0,38,22],[38,23,38,26],[38,27,38,37],[38,39,38,62],[38,63,38,66],[38,67,38,77],[37,0,37,22],[37,23,37,26],[37,27,37,37],[37,39,37,62],[37,63,37,66],[37,67,37,77],[36,0,36,22],[36,23,36,26],[36,27,36,37],[36,39,36,62],[36,63,36,66],[36,67,36,77],[35,0,35,22],[35,23,35,26],[35,27,35,37],[35,39,35,62],[35,63,35,66],[35,67,35,77],[34,0,34,22],[34,23,34,26],[34,27,34,37],[34,39,34,62],[34,63,34,66],[34,67,34,77],[33,0,33,22],[33,23,33,26],[33,27,33,37],[33,39,33,62],[33,63,33,66],[33,67,33,77],[32,0,32,22],[32,23,32,26],[32,27,32,37],[32,39,32,62],[32,63,32,66],[32,67,32,77],[31,0,31,22],[31,23,31,26],[31,27,31,37],[31,39,31,62],[31,63,31,66],[31,67,31,77],[30,0,30,22],[30,23,30,26],[30,27,30,37],[30,39,30,62],[30,63,30,66],[30,67,30,77],[29,0,29,22],[29,23,29,26],[29,27,29,37],[29,39,29,62],[29,63,29,66],[29,67,29,77],[28,0,28,22],[28,23,28,26],[28,27,28,37],[28,39,28,62],[28,63,28,66],[28,67,28,77],[27,0,27,22],[27,23,27,26],[27,27,27,37],[27,39,27,62],[27,63,27,66],[27,67,27,77],[25,0,25,22],[25,23,25,26],[25,27,25,37],[25,39,26,62],[25,63,26,66],[25,67,26,77],[26,0,26,22],[26,23,26,26],[26,27,26,37],[24,0,24,22],[24,23,24,26],[24,27,24,37],[24,39,24,62],[24,63,24,66],[24,67,24,77],[22,0,22,22],[22,23,22,26],[22,27,22,37],[22,39,23,62],[22,63,23,66],[22,67,23,77],[23,0,23,22],[23,23,23,26],[23,27,23,37],[20,67,20,77],[21,0,21,22],[21,23,21,26],[21,28,21,37],[21,39,21,62],[21,63,21,66],[21,68,21,77],[16,0,16,17],[16,18,16,32],[17,0,17,77],[18,0,18,77],[19,0,19,77],[20,0,20,22],[20,23,20,26],[20,27,20,37],[20,39,20,62],[20,63,20,66],[14,56,15,77],[15,10,15,14],[15,17,15,19],[15,22,15,24],[15,31,15,35],[15,38,15,40],[15,43,15,45],[13,0,13,55],[14,10,14,14],[14,17,14,19],[14,22,14,24],[14,31,14,35],[14,38,14,40],[14,43,14,45],[14,46,14,55],[11,23,11,30],[11,31,11,32],[11,33,11,44],[11,45,11,54],[11,56,12,77],[12,27,12,44],[8,0,8,77],[9,0,9,55],[10,0,10,55],[10,56,10,70],[10,74,10,75],[11,1,11,2],[11,3,11,10],[11,11,11,12],[11,13,11,20],[11,21,11,22],[0,0,0,77],[2,0,6,6],[2,7,3,61],[3,64,3,69],[3,70,3,71],[3,72,3,73],[3,74,3,75],[4,7,6,63],[5,65,5,67],[5,68,5,75]]}
[null,null,null,null,null,null,null,null,null,null,null,null,null,null,null,null,null,null,null,null,null,null,null,null,null,null,null,null,null,null,null,null,null,null,null,null,null,null,null,null,null,null,null,null,null,null,null,null,null,null,null,null,null,null,null,null,null,null,null,null,null,null,null,null,null,null,null,null,null,null,null,null,null,null,null,null,null,null,null,null,null,null,null,null,null,null,null,null,null,null,"Hide here and after"]
[]
["AgriStability AgriInvest",null,null,null,null,null,null,{"$f":"AppStab","v":"2022 Statement A"}]
[null,null,null,null,null,null,null,null,null,null,null,null,null,null,null,null,null,null,null,null,null,null,null,null,null,null,null,null,null,null,null,null,null,null,null,null,null,null,null,null,null,null,null,null,null,null,null,null,null,null,null,null,null,null,null,null,null,null,null,null,null,null,null,null,"Operation ",null,null,null,null,null,{"$f":"IF(ISBLANK('1 - Ident'!BL3),\"\",'1 - Ident'!BL3)","v":""},null,"of",null,{"$f":"IF(ISBLANK('1 - Ident'!BP3),\"\",'1 - Ident'!BP3)","v":""}]
[null,null,null,null,null,null,null,{"$f":"AppType","v":" Alberta Corporations/Co-operatives/Other Entities"}]
[null,null,null,null,null,null,null,null,null,null,null,null,null,null,null,null,null,null,null,null,null,null,null,null,null,null,null,null,null,null,null,null,null,null,null,null,null,null,null,null,null,null,null,null,null,null,null,null,null,null,null,null,null,null,null,null,null,null,null,null,null,null,null,null,null,"PIN",null,null,{"$f":"IF(ISBLANK('1 - Ident'!S17),\"\",'1 - Ident'!S17)","v":""}]
[]
[]
["Identification - Complete a separate Statement A for each additional farming operation"]
[]
[null,null,null,null,null,null,null,null,null,null,null,null,null,null,null,null,null,null,null,null,null,null,null,null,null,null,null,null,null,null,null,null,null,null,null,null,null,null,null,null,null,null,null,null,null,null,null,null,null,null,null,null,null,null,null,null,"Method of tax filing"]
[null,null,null,"Corporation",null,null,null,null,null,null,null,null,null,"Co-operative",null,null,null,null,null,null,null,null,null,"Partnership",null,null,null,null,null,null,null,null,null,"Other Entity (specify)",null,null,null,null,null,null,null,null,null,null,null,null,null,null,null,null,null,null,null,null,null,null,"Enter Code 1: If you are using the accrual method of filing tax to CRA"]
[]
[]
[null,null,null,null,"From:",null,null,null,null,null,null,null,null,null,null,null,null,null,null,null,null,null,null,null,null,null,null,null,"To:",null,null,null,null,null,null,null,null,null,null,null,null,null,null,null,null,null,null,null,null,null,null,null,null,null,null,null,"Enter Code 2: If you are using the cash method of filing tax to CRA"]
[null,null,null,null,null,null,null,null,null,null,"Y",null,null,null,null,null,null,"M",null,null,null,null,"D",null,null,null,null,null,null,null,null,"Y",null,null,null,null,null,null,"M",null,null,null,null,"D"]
[]
["Income"]
[]
["Round all income amounts to the nearest dollar."]
["Commodity sales and program payments",null,null,null,null,null,null,null,null,null,null,null,null,null,null,null,null,null,null,null,null,null,null,"Code",null,null,null,"Amount",null,null,null,null,null,null,null,null,null,null,null,"Other farming income",null,null,null,null,null,null,null,null,null,null,null,null,null,null,null,null,null,null,null,null,null,null,null,"Line",null,null,null,"Amount"]
[null,null,null,null,null,null,null,null,null,null,null,null,null,null,null,null,null,null,null,null,null,null,null,{"$f":"IF(A22=\"\",\"\",VLOOKUP(TRIM(A22),'RC4060 Codes'!$B$3:$C$291,2,FALSE))","v":""},null,null,null,"$",null,null,null,null,null,null,null,null,null,null,null,"Other program payments",null,null,null,null,null,null,null,null,null,null,null,null,null,null,null,null,null,null,null,null,null,null,null,"9540",null,null,null,"$"]
[null,null,null,null,null,null,null,null,null,null,null,null,null,null,null,null,null,null,null,null,null,null,null,{"$f":"IF(A23=\"\",\"\",VLOOKUP(TRIM(A23),'RC4060 Codes'!$B$3:$C$291,2,FALSE))","v":""},null,null,null,null,null,null,null,null,null,null,null,null,null,null,null,"Business risk management (BRM) and disaster assistance payments",null,null,null,null,null,null,null,null,null,null,null,null,null,null,null,null,null,null,null,null,null,null,null,"9544"]
[null,null,null,null,null,null,null,null,null,null,null,null,null,null,null,null,null,null,null,null,null,null,null,{"$f":"IF(A24=\"\",\"\",VLOOKUP(TRIM(A24),'RC4060 Codes'!$B$3:$C$291,2,FALSE))","v":""}]
[null,null,null,null,null,null,null,null,null,null,null,null,null,null,null,null,null,null,null,null,null,null,null,{"$f":"IF(A25=\"\",\"\",VLOOKUP(TRIM(A25),'RC4060 Codes'!$B$3:$C$291,2,FALSE))","v":""},null,null,null,null,null,null,null,null,null,null,null,null,null,null,null,"Resales, rebates, GST/HST for allowable expenses",null,null,null,null,null,null,null,null,null,null,null,null,null,null,null,null,null,null,null,null,null,null,null,"9574"]
[null,null,null,null,null,null,null,null,null,null,null,null,null,null,null,null,null,null,null,null,null,null,null,{"$f":"IF(A26=\"\",\"\",VLOOKUP(TRIM(A26),'RC4060 Codes'!$B$3:$C$291,2,FALSE))","v":""},null,null,null,null,null,null,null,null,null,null,null,null,null,null,null,"Resales, rebates, GST/HST for non-allowable expenses, and recapture of capital cost allowance (CCA)",null,null,null,null,null,null,null,null,null,null,null,null,null,null,null,null,null,null,null,null,null,null,null,"9575"]
[null,null,null,null,null,null,null,null,null,null,null,null,null,null,null,null,null,null,null,null,null,null,null,{"$f":"IF(A27=\"\",\"\",VLOOKUP(TRIM(A27),'RC4060 Codes'!$B$3:$C$291,2,FALSE))","v":""}]
[null,null,null,null,null,null,null,null,null,null,null,null,null,null,null,null,null,null,null,null,null,null,null,{"$f":"IF(A28=\"\",\"\",VLOOKUP(TRIM(A28),'RC4060 Codes'!$B$3:$C$291,2,FALSE))","v":""},null,null,null,null,null,null,null,null,null,null,null,null,null,null,null," Agricultural contract work",null,null,null,null,null,null,null,null,null,null,null,null,null,null,null,null,null,null,null,null,null,null,null,"9601"]
[null,null,null,null,null,null,null,null,null,null,null,null,null,null,null,null,null,null,null,null,null,null,null,{"$f":"IF(A29=\"\",\"\",VLOOKUP(TRIM(A29),'RC4060 Codes'!$B$3:$C$291,2,FALSE))","v":""},null,null,null,null,null,null,null,null,null,null,null,null,null,null,null," Patronage dividends",null,null,null,null,null,null,null,null,null,null,null,null,null,null,null,null,null,null,null,null,null,null,null,"9605"]
[null,null,null,null,null,null,null,null,null,null,null,null,null,null,null,null,null,null,null,null,null,null,null,{"$f":"IF(A30=\"\",\"\",VLOOKUP(TRIM(A30),'RC4060 Codes'!$B$3:$C$291,2,FALSE))","v":""},null,null,null,null,null,null,null,null,null,null,null,null,null,null,null," Interest",null,null,null,null,null,null,null,null,null,null,null,null,null,null,null,null,null,null,null,null,null,null,null,"9607"]
[null,null,null,null,null,null,null,null,null,null,null,null,null,null,null,null,null,null,null,null,null,null,null,{"$f":"IF(A31=\"\",\"\",VLOOKUP(TRIM(A31),'RC4060 Codes'!$B$3:$C$291,2,FALSE))","v":""},null,null,null,null,null,null,null,null,null,null,null,null,null,null,null," Gravel",null,null,null,null,null,null,null,null,null,null,null,null,null,null,null,null,null,null,null,null,null,null,null,"9610"]
[null,null,null,null,null,null,null,null,null,null,null,null,null,null,null,null,null,null,null,null,null,null,null,{"$f":"IF(A32=\"\",\"\",VLOOKUP(TRIM(A32),'RC4060 Codes'!$B$3:$C$291,2,FALSE))","v":""},null,null,null,null,null,null,null,null,null,null,null,null,null,null,null," Trucking (farm-related only)",null,null,null,null,null,null,null,null,null,null,null,null,null,null,null,null,null,null,null,null,null,null,null,"9611"]
[null,null,null,null,null,null,null,null,null,null,null,null,null,null,null,null,null,null,null,null,null,null,null,{"$f":"IF(A33=\"\",\"\",VLOOKUP(TRIM(A33),'RC4060 Codes'!$B$3:$C$291,2,FALSE))","v":""},null,null,null,null,null,null,null,null,null,null,null,null,null,null,null," Resales of commodities purchased",null,null,null,null,null,null,null,null,null,null,null,null,null,null,null,null,null,null,null,null,null,null,null,"9612"]
[null,null,null,null,null,null,null,null,null,null,null,null,null,null,null,null,null,null,null,null,null,null,null,{"$f":"IF(A34=\"\",\"\",VLOOKUP(TRIM(A34),'RC4060 Codes'!$B$3:$C$291,2,FALSE))","v":""},null,null,null,null,null,null,null,null,null,null,null,null,null,null,null," Leases (gas, oil well, surface, etc.)",null,null,null,null,null,null,null,null,null,null,null,null,null,null,null,null,null,null,null,null,null,null,null,"9613"]
[null,null,null,null,null,null,null,null,null,null,null,null,null,null,null,null,null,null,null,null,null,null,null,{"$f":"IF(A35=\"\",\"\",VLOOKUP(TRIM(A35),'RC4060 Codes'!$B$3:$C$291,2,FALSE))","v":""},null,null,null,null,null,null,null,null,null,null,null,null,null,null,null," Machine rentals",null,null,null,null,null,null,null,null,null,null,null,null,null,null,null,null,null,null,null,null,null,null,null,"9614"]
[null,null,null,null,null,null,null,null,null,null,null,null,null,null,null,null,null,null,null,null,null,null,null,{"$f":"IF(A36=\"\",\"\",VLOOKUP(TRIM(A36),'RC4060 Codes'!$B$3:$C$291,2,FALSE))","v":""},null,null,null,null,null,null,null,null,null,null,null,null,null,null,null," Other (specify):",null,null,null,null,null,null,null,null,null,null,null,null,null,null,null,null,null,null,null,null,null,null,null,"9600"]
[null,null,null,null,null,null,null,null,null,null,null,null,null,null,null,null,null,null,null,null,null,null,null,{"$f":"IF(A37=\"\",\"\",VLOOKUP(TRIM(A37),'RC4060 Codes'!$B$3:$C$291,2,FALSE))","v":""}]
[null,null,null,null,null,null,null,null,null,null,null,null,null,null,null,null,null,null,null,null,null,null,null,{"$f":"IF(A38=\"\",\"\",VLOOKUP(TRIM(A38),'RC4060 Codes'!$B$3:$C$291,2,FALSE))","v":""}]
["Other Allowable Commodity Income:"]
[]
[]
[null,null,null,null,null,null,null,null,null,null,null,null,null,null,null,null,null,null,null,null,null,null,null,null,null,null,null,null,null,null,null,null,null,null,null,null,null,null,null,"Total B",null,null,null,null,null,null,null,null,null,null,null,null,null,null,null,null,null,null,null,null,null,null,null,null,null,null,null,"$",{"$f":"SUM(BP22:BZ41)","v":0}]
[]
[null,null,null,null,null,null,null,null,null,null,null,null,null,null,null,null,null,null,null,null,null,null,null,null,null,null,null,null,null,null,null,null,null,null,null,null,null,null,null,"Summary of income"]
[null,null,null,null,null,null,null,null,null,null,null,null,null,null,null,null,null,null,null,null,null,null,null,null,null,null,null,null,null,null,null,null,null,null,null,null,null,null,null,"Total A",null,null,null,null,null,null,null,null,null,null,null,null,null,null,null,null,null,null,null,null,null,null,null,null,null,null,null,"$",{"$f":"+AC48","v":0}]
[null,null,null,null,null,null,null,null,null,null,null,null,null,null,null,null,null,null,null,null,null,null,null,null,null,null,null,null,null,null,null,null,null,null,null,null,null,null,null,"Total B",null,null,null,null,null,null,null,null,null,null,null,null,null,null,null,null,null,null,null,null,null,null,null,null,null,null,null,"+",{"$f":"+BQ42","v":0}]
[null,null,null,null,null,null,null,null,null,null,null,null,null,null,null,null,null,null,null,null,null,null,null,null,null,null,null,null,null,null,null,null,null,null,null,null,null,null,null,"Gross farming income \n(enter on line 9959 on page 4 of this form)",null,null,null,null,null,null,null,null,null,null,null,null,null,null,null,null,null,null,null,null,null,null,null,null,null,null,null,"$",{"$f":"IF(BQ45+BQ46=\"\",0,BQ45+BQ46)","v":0}]
["Total A   ",null,null,null,null,null,null,null,null,null,null,null,null,null,null,null,null,null,null,null,null,null,null,9950,null,null,null,"$",{"$f":"SUM(AB22:AC47)","v":0}]
[]
["Hide here and after"]

{"sheet":"3 - Expenses","index":3,"n_rows":55,"n_cols":116,"rows_kept":55,"cut":false,"hidden":false,"merged":[[53,0,53,28],[53,30,53,39],[53,42,53,71],[53,73,53,82],[51,0,51,24],[51,25,51,28],[51,29,51,39],[51,42,51,71],[51,73,51,82],[52,0,52,24],[52,25,52,28],[52,29,52,39],[52,42,52,71],[52,73,52,82],[49,0,49,24],[49,25,49,28],[49,29,49,39],[49,42,49,82],[50,0,50,24],[50,25,50,28],[50,29,50,39],[50,42,50,71],[50,73,50,82],[47,0,47,24],[47,25,47,28],[47,29,47,39],[47,42,47,71],[47,73,47,82],[48,0,48,24],[48,25,48,28],[48,29,48,39],[46,0,46,24],[46,25,46,28],[46,29,46,39],[46,42,46,67],[46,68,46,71],[46,72,46,82],[45,0,45,24],[45,25,45,28],[45,29,45,39],[45,42,45,67],[45,68,45,71],[45,72,45,82],[44,0,44,24],[44,25,44,28],[44,29,44,39],[44,42,44,67],[44,68,44,71],[44,72,44,82],[43,0,43,24],[43,25,43,28],[43,29,43,39],[43,42,43,67],[43,68,43,71],[43,72,43,82],[42,0,42,24],[42,25,42,28],[42,29,42,39],[42,42,42,67],[42,68,42,71],[42,72,42,82],[41,0,41,24],[41,25,41,28],[41,29,41,39],[41,42,41,67],[41,68,41,71],[41,72,41,82],[40,0,40,24],[40,25,40,28],[40,29,40,39],[40,42,40,67],[40,68,40,71],[40,72,40,82],[39,0,39,24],[39,25,39,28],[39,29,39,39],[39,42,39,67],[39,68,39,71],[39,72,39,82],[38,0,38,24],[38,25,38,28],[38,29,38,39],[38,42,38,67],[38,68,38,71],[38,72,38,82],[37,0,37,24],[37,25,37,28],[37,29,37,39],[37,42,37,67],[37,68,37,71],[37,72,37,82],[36,0,36,24],[36,25,36,28],[36,29,36,39],[36,42,36,67],[36,68,36,71],[36,72,36,82],[35,0,35,24],[35,25,35,28],[35,29,35,39],[35,42,35,67],[35,68,35,71],[35,72,35,82],[34,0,34,24],[34,25,34,28],[34,29,34,39],[34,42,34,67],[34,68,34,71],[34,72,34,82],[33,0,33,24],[33,25,33,28],[33,29,33,39],[33,42,33,67],[33,68,33,71],[33,72,33,82],[32,0,32,24],[32,25,32,28],[32,29,32,39],[32,42,32,67],[32,68,32,71],[32,72,32,82],[31,0,31,24],[31,25,31,28],[31,29,31,39],[31,42,31,67],[31,68,31,71],[31,72,31,82],[30,0,30,24],[30,25,30,28],[30,29,30,39],[30,42,30,67],[30,68,30,71],[30,72,30,82],[29,0,29,24],[29,25,29,28],[29,29,29,39],[29,42,29,67],[29,68,29,71],[29,72,29,82],[28,0,28,24],[28,25,28,28],[28,29,28,39],[28,42,28,67],[28,68,28,71],[28,72,28,82],[27,0,27,24],[27,25,27,28],[27,29,27,39],[27,42,27,67],[27,68,27,71],[27,72,27,82],[26,0,26,24],[26,25,26,28],[26,29,26,39],[26,42,26,67],[26,68,26,71],[26,72,26,82],[25,0,25,24],[25,25,25,28],[25,30,25,39],[25,42,25,67],[25,68,25,71],[25,72,25,82],[23,42,23,67],[23,68,23,71],[23,72,23,82],[24,0,24,24],[24,25,24,28],[24,29,24,39],[24,42,24,67],[24,68,24,71],[24,72,24,82],[22,0,22,24],[22,25,22,28],[22,30,22,39],[22,42,22,67],[22,68,22,71],[22,72,22,82],[21,0,21,24],[21,25,21,28],[21,30,21,39],[21,42,21,67],[21,68,21,71],[21,72,21,82],[20,0,20,24],[20,25,20,28],[20,30,20,39],[20,42,20,67],[20,68,20,71],[20,72,20,82],[19,0,19,24],[19,25,19,28],[19,30,19,39],[19,42,19,67],[19,68,19,71],[19,72,19,82],[18,0,18,24],[18,25,18,28],[18,30,18,39],[18,42,18,67],[18,68,18,71],[18,72,18,82],[17,0,17,24],[17,25,17,28],[17,30,17,39],[17,42,17,67],[17,68,17,71],[17,72,17,82],[16,0,16,24],[16,25,16,28],[16,30,16,39],[16,42,16,67],[16,68,16,71],[16,72,16,82],[15,0,15,24],[15,25,15,28],[15,30,15,39],[15,42,15,67],[15,68,15,71],[15,72,15,82],[14,0,14,24],[14,25,14,28],[14,30,14,39],[14,42,14,67],[14,68,14,71],[14,72,14,82],[13,0,13,24],[13,25,13,28],[13,30,13,39],[13,42,13,67],[13,68,13,71],[13,72,13,82],[12,0,12,24],[12,25,12,28],[12,30,12,39],[12,42,12,67],[12,68,12,71],[12,72,12,82],[11,0,11,24],[11,25,11,28],[11,30,11,39],[11,42,11,67],[11,68,11,71],[11,73,11,82],[7,0,7,82],[8,0,8,82],[9,0,9,82],[10,0,10,24],[10,25,10,28],[10,29,10,39],[10,42,10,67],[10,68,10,71],[10,72,10,82],[0,0,0,82],[1,0,5,6],[1,7,2,69],[2,70,2,75],[2,76,2,77],[2,78,2,79],[2,80,2,81],[3,7,5,69],[4,71,4,73],[4,74,4,81]]}
[null,null,null,null,null,null,null,null,null,null,null,null,null,null,null,null,null,null,null,null,null,null,null,null,null,null,null,null,null,null,null,null,null,null,null,null,null,null,null,null,null,null,null,null,null,null,null,null,null,null,null,null,null,null,null,null,null,null,null,null,null,null,null,null,null,null,null,null,null,null,null,null,null,null,null,null,null,null,null,null,null,null,null,null,null,null,null,null,null,null,null,null,null,null,"Hide here and after"]
["AgriStability AgriInvest",null,null,null,null,null,null,{"$f":"AppStab","v":"2022 Statement A"}]
[null,null,null,null,null,null,null,null,null,null,null,null,null,null,null,null,null,null,null,null,null,null,null,null,null,null,null,null,null,null,null,null,null,null,null,null,null,null,null,null,null,null,null,null,null,null,null,null,null,null,null,null,null,null,null,null,null,null,null,null,null,null,null,null,null,null,null,null,null,null,"Operation ",null,null,null,null,null,{"$f":"IF(ISBLANK('1 - Ident'!BL3),\"\",'1 - Ident'!BL3)","v":""},null,"of",null,{"$f":"IF(ISBLANK('1 - Ident'!BP3),\"\",'1 - Ident'!BP3)","v":""}]
[null,null,null,null,null,null,null,{"$f":"AppType","v":" Alberta Corporations/Co-operatives/Other Entities"}]
[null,null,null,null,null,null,null,null,null,null,null,null,null,null,null,null,null,null,null,null,null,null,null,null,null,null,null,null,null,null,null,null,null,null,null,null,null,null,null,null,null,null,null,null,null,null,null,null,null,null,null,null,null,null,null,null,null,null,null,null,null,null,null,null,null,null,null,null,null,null,null,"PIN",null,null,{"$f":"IF(ISBLANK('1 - Ident'!S17),\"\",'1 - Ident'!S17)","v":""}]
[]
[]
["Expenses"]
[]
["Round all expense amounts to the nearest dollar."]
[" Commodity purchases and                  repayment of program benefits",null,null,null,null,null,null,null,null,null,null,null,null,null,null,null,null,null,null,null,null,null,null,null,null,"Code",null,null,null,"Amount",null,null,null,null,null,null,null,null,null,null,null,null,"Non-allowable expenses",null,null,null,null,null,null,null,null,null,null,null,null,null,null,null,null,null,null,null,null,null,null,null,null,null,"Line",null,null,null,"Amount"]
["Point of sale adjustments",null,null,null,null,null,null,null,null,null,null,null,null,null,null,null,null,null,null,null,null,null,null,null,null,575,null,null,null,"$",null,null,null,null,null,null,null,null,null,null,null,null,"Machinery (repairs, licences, insurance)",null,null,null,null,null,null,null,null,null,null,null,null,null,null,null,null,null,null,null,null,null,null,null,null,null,9760,null,null,null,"$"]
[null,null,null,null,null,null,null,null,null,null,null,null,null,null,null,null,null,null,null,null,null,null,null,null,null,{"$f":"IF(A13=\"\",\"\",VLOOKUP(A13,'RC4060 Codes'!F$3:G$112,2,FALSE))","v":""},null,null,null,null,null,null,null,null,null,null,null,null,null,null,null,null,"Machinery lease/rental",null,null,null,null,null,null,null,null,null,null,null,null,null,null,null,null,null,null,null,null,null,null,null,null,null,"9765"]
[null,null,null,null,null,null,null,null,null,null,null,null,null,null,null,null,null,null,null,null,null,null,null,null,null,{"$f":"IF(A14=\"\",\"\",VLOOKUP(A14,'RC4060 Codes'!F$3:G$112,2,FALSE))","v":""},null,null,null,null,null,null,null,null,null,null,null,null,null,null,null,null,"Advertising and promotion",null,null,null,null,null,null,null,null,null,null,null,null,null,null,null,null,null,null,null,null,null,null,null,null,null,9792]
[null,null,null,null,null,null,null,null,null,null,null,null,null,null,null,null,null,null,null,null,null,null,null,null,null,{"$f":"IF(A15=\"\",\"\",VLOOKUP(A15,'RC4060 Codes'!F$3:G$112,2,FALSE))","v":""},null,null,null,null,null,null,null,null,null,null,null,null,null,null,null,null,"Building and fence repairs",null,null,null,null,null,null,null,null,null,null,null,null,null,null,null,null,null,null,null,null,null,null,null,null,null,9795]
[null,null,null,null,null,null,null,null,null,null,null,null,null,null,null,null,null,null,null,null,null,null,null,null,null,{"$f":"IF(A16=\"\",\"\",VLOOKUP(A16,'RC4060 Codes'!F$3:G$112,2,FALSE))","v":""},null,null,null,null,null,null,null,null,null,null,null,null,null,null,null,null,"Land clearing and draining",null,null,null,null,null,null,null,null,null,null,null,null,null,null,null,null,null,null,null,null,null,null,null,null,null,"9796"]
[null,null,null,null,null,null,null,null,null,null,null,null,null,null,null,null,null,null,null,null,null,null,null,null,null,{"$f":"IF(A17=\"\",\"\",VLOOKUP(A17,'RC4060 Codes'!F$3:G$112,2,FALSE))","v":""},null,null,null,null,null,null,null,null,null,null,null,null,null,null,null,null,"Agricultural contract work",null,null,null,null,null,null,null,null,null,null,null,null,null,null,null,null,null,null,null,null,null,null,null,null,null,"9798"]
[null,null,null,null,null,null,null,null,null,null,null,null,null,null,null,null,null,null,null,null,null,null,null,null,null,{"$f":"IF(A18=\"\",\"\",VLOOKUP(A18,'RC4060 Codes'!F$3:G$112,2,FALSE))","v":""},null,null,null,null,null,null,null,null,null,null,null,null,null,null,null,null,"Other insurance premiums",null,null,null,null,null,null,null,null,null,null,null,null,null,null,null,null,null,null,null,null,null,null,null,null,null,9804]
[null,null,null,null,null,null,null,null,null,null,null,null,null,null,null,null,null,null,null,null,null,null,null,null,null,{"$f":"IF(A19=\"\",\"\",VLOOKUP(A19,'RC4060 Codes'!F$3:G$112,2,FALSE))","v":""},null,null,null,null,null,null,null,null,null,null,null,null,null,null,null,null,"Interest (real estate, mortgage, other)",null,null,null,null,null,null,null,null,null,null,null,null,null,null,null,null,null,null,null,null,null,null,null,null,null,"9805"]
["Other Allowable Purchases:",null,null,null,null,null,null,null,null,null,null,null,null,null,null,null,null,null,null,null,null,null,null,null,null,null,null,null,null,null,null,null,null,null,null,null,null,null,null,null,null,null,"Memberships/subscription fees",null,null,null,null,null,null,null,null,null,null,null,null,null,null,null,null,null,null,null,null,null,null,null,null,null,"9807"]
[null,null,null,null,null,null,null,null,null,null,null,null,null,null,null,null,null,null,null,null,null,null,null,null,null,null,null,null,null,null,null,null,null,null,null,null,null,null,null,null,null,null,"Office expenses",null,null,null,null,null,null,null,null,null,null,null,null,null,null,null,null,null,null,null,null,null,null,null,null,null,"9808"]
[null,null,null,null,null,null,null,null,null,null,null,null,null,null,null,null,null,null,null,null,null,null,null,null,null,null,null,null,null,null,null,null,null,null,null,null,null,null,null,null,null,null,"Legal and accounting fees",null,null,null,null,null,null,null,null,null,null,null,null,null,null,null,null,null,null,null,null,null,null,null,null,null,"9809"]
["Total C",null,null,null,null,null,null,null,null,null,null,null,null,null,null,null,null,null,null,null,null,null,null,null,null,9960,null,null,null,"$",{"$f":"SUM(AD12:AN22)","v":0},null,null,null,null,null,null,null,null,null,null,null,"Property taxes",null,null,null,null,null,null,null,null,null,null,null,null,null,null,null,null,null,null,null,null,null,null,null,null,null,"9810"]
[null,null,null,null,null,null,null,null,null,null,null,null,null,null,null,null,null,null,null,null,null,null,null,null,null,null,null,null,null,null,null,null,null,null,null,null,null,null,null,null,null,null,"Rent (land, buildings, pastures)",null,null,null,null,null,null,null,null,null,null,null,null,null,null,null,null,null,null,null,null,null,null,null,null,null,"9811"]
["Allowable expenses",null,null,null,null,null,null,null,null,null,null,null,null,null,null,null,null,null,null,null,null,null,null,null,null,"Line",null,null,null,"Amount",null,null,null,null,null,null,null,null,null,null,null,null,"Non-arm's length salaries",null,null,null,null,null,null,null,null,null,null,null,null,null,null,null,null,null,null,null,null,null,null,null,null,null,"9816"]
["Containers and twine",null,null,null,null,null,null,null,null,null,null,null,null,null,null,null,null,null,null,null,null,null,null,null,null,"9661",null,null,null,"$",null,null,null,null,null,null,null,null,null,null,null,null,"Motor vehicle expenses",null,null,null,null,null,null,null,null,null,null,null,null,null,null,null,null,null,null,null,null,null,null,null,null,null,"9819"]
["Fertilizers and soil supplements",null,null,null,null,null,null,null,null,null,null,null,null,null,null,null,null,null,null,null,null,null,null,null,null,"9662",null,null,null,null,null,null,null,null,null,null,null,null,null,null,null,null,"Small tools",null,null,null,null,null,null,null,null,null,null,null,null,null,null,null,null,null,null,null,null,null,null,null,null,null,"9820"]
["Pesticides and chemical treatments",null,null,null,null,null,null,null,null,null,null,null,null,null,null,null,null,null,null,null,null,null,null,null,null,"9663",null,null,null,null,null,null,null,null,null,null,null,null,null,null,null,null,"Soil testing",null,null,null,null,null,null,null,null,null,null,null,null,null,null,null,null,null,null,null,null,null,null,null,null,null,"9821"]
["Insurance premiums (crop or production)",null,null,null,null,null,null,null,null,null,null,null,null,null,null,null,null,null,null,null,null,null,null,null,null,"9665",null,null,null,null,null,null,null,null,null,null,null,null,null,null,null,null,"Licenses/permits",null,null,null,null,null,null,null,null,null,null,null,null,null,null,null,null,null,null,null,null,null,null,null,null,null,"9823"]
["Veterinary fees, medicine, and breeding fees",null,null,null,null,null,null,null,null,null,null,null,null,null,null,null,null,null,null,null,null,null,null,null,null,"9713",null,null,null,null,null,null,null,null,null,null,null,null,null,null,null,null,"Telephone",null,null,null,null,null,null,null,null,null,null,null,null,null,null,null,null,null,null,null,null,null,null,null,null,null,"9824"]
["Minerals and salts",null,null,null,null,null,null,null,null,null,null,null,null,null,null,null,null,null,null,null,null,null,null,null,null,"9714",null,null,null,null,null,null,null,null,null,null,null,null,null,null,null,null,"Quota rental (tobacco, dairy)",null,null,null,null,null,null,null,null,null,null,null,null,null,null,null,null,null,null,null,null,null,null,null,null,null,"9825"]
["Machinery (gasoline, diesel fuel, oil)",null,null,null,null,null,null,null,null,null,null,null,null,null,null,null,null,null,null,null,null,null,null,null,null,"9764",null,null,null,null,null,null,null,null,null,null,null,null,null,null,null,null,"Gravel",null,null,null,null,null,null,null,null,null,null,null,null,null,null,null,null,null,null,null,null,null,null,null,null,null,"9826"]
["Electricity",null,null,null,null,null,null,null,null,null,null,null,null,null,null,null,null,null,null,null,null,null,null,null,null,"9799",null,null,null,null,null,null,null,null,null,null,null,null,null,null,null,null,"Purchases of commodities resold",null,null,null,null,null,null,null,null,null,null,null,null,null,null,null,null,null,null,null,null,null,null,null,null,null,"9827"]
["Freight and shipping",null,null,null,null,null,null,null,null,null,null,null,null,null,null,null,null,null,null,null,null,null,null,null,null,"9801",null,null,null,null,null,null,null,null,null,null,null,null,null,null,null,null,"Motor vehicle interest and leasing costs",null,null,null,null,null,null,null,null,null,null,null,null,null,null,null,null,null,null,null,null,null,null,null,null,null,"9829"]
["Heating fuel",null,null,null,null,null,null,null,null,null,null,null,null,null,null,null,null,null,null,null,null,null,null,null,null,"9802",null,null,null,null,null,null,null,null,null,null,null,null,null,null,null,null,"Capital cost allowance  (Complete Form T1175)",null,null,null,null,null,null,null,null,null,null,null,null,null,null,null,null,null,null,null,null,null,null,null,null,null,"9936"]
["Arm's length salaries",null,null,null,null,null,null,null,null,null,null,null,null,null,null,null,null,null,null,null,null,null,null,null,null,"9815",null,null,null,null,null,null,null,null,null,null,null,null,null,null,null,null,"Mandatory inventory adjustments - prior year",null,null,null,null,null,null,null,null,null,null,null,null,null,null,null,null,null,null,null,null,null,null,null,null,null,9937]
["Storage/drying",null,null,null,null,null,null,null,null,null,null,null,null,null,null,null,null,null,null,null,null,null,null,null,null,"9822",null,null,null,null,null,null,null,null,null,null,null,null,null,null,null,null,"Optional inventory adjustments - prior year",null,null,null,null,null,null,null,null,null,null,null,null,null,null,null,null,null,null,null,null,null,null,null,null,null,9938]
["Commissions and levies",null,null,null,null,null,null,null,null,null,null,null,null,null,null,null,null,null,null,null,null,null,null,null,null,9836,null,null,null,null,null,null,null,null,null,null,null,null,null,null,null,null,"Other (specify):",null,null,null,null,null,null,null,null,null,null,null,null,null,null,null,null,null,null,null,null,null,null,null,null,null,9896]
["Private insurance premiums for allowable commodities",null,null,null,null,null,null,null,null,null,null,null,null,null,null,null,null,null,null,null,null,null,null,null,null,9953]
[]
[]
[]
[]
[]
[]
[]
[]
[null,null,null,null,null,null,null,null,null,null,null,null,null,null,null,null,null,null,null,null,null,null,null,null,null,null,null,null,null,null,null,null,null,null,null,null,null,null,null,null,null,null,"Total E",null,null,null,null,null,null,null,null,null,null,null,null,null,null,null,null,null,null,null,null,null,null,null,null,null,null,null,null,null,"$",{"$f":"SUM(BU12:CE47)","v":0}]
[]
[null,null,null,null,null,null,null,null,null,null,null,null,null,null,null,null,null,null,null,null,null,null,null,null,null,null,null,null,null,null,null,null,null,null,null,null,null,null,null,null,null,null,"Summary of expenses"]
[null,null,null,null,null,null,null,null,null,null,null,null,null,null,null,null,null,null,null,null,null,null,null,null,null,null,null,null,null,null,null,null,null,null,null,null,null,null,null,null,null,null,"Total C",null,null,null,null,null,null,null,null,null,null,null,null,null,null,null,null,null,null,null,null,null,null,null,null,null,null,null,null,null,"$",{"$f":"+AE23","v":0}]
[null,null,null,null,null,null,null,null,null,null,null,null,null,null,null,null,null,null,null,null,null,null,null,null,null,null,null,null,null,null,null,null,null,null,null,null,null,null,null,null,null,null,"Total D",null,null,null,null,null,null,null,null,null,null,null,null,null,null,null,null,null,null,null,null,null,null,null,null,null,null,null,null,null,"+",{"$f":"+AE54","v":0},null,null,null,null,null,null,null,null,null,null,null,null,null,null,null,null,null,null,null,null,null,null,null,null,null,null,null,null,null,null,null,null,null,null,null,null,null,null,null,null,null," "]
[null,null,null,null,null,null,null,null,null,null,null,null,null,null,null,null,null,null,null,null,null,null,null,null,null,null,null,null,null,null,null,null,null,null,null,null,null,null,null,null,null,null,"Total E",null,null,null,null,null,null,null,null,null,null,null,null,null,null,null,null,null,null,null,null,null,null,null,null,null,null,null,null,null,"+",{"$f":"+BV48","v":0}]
["                  Total D",null,null,null,null,null,null,null,null,null,null,null,null,null,null,null,null,null,null,null,null,null,null,null,null,null,null,null,null,"$",{"$f":"SUM(AD26:AN53)","v":0},null,null,null,null,null,null,null,null,null,null,null,"Total expenses (enter on line 9968 on page 4)",null,null,null,null,null,null,null,null,null,null,null,null,null,null,null,null,null,null,null,null,null,null,null,null,null,null,null,null,null,"$",{"$f":"(IF(SUM(BV51:CE53)=\"\",0,SUM(BV51:CE53)))","v":0}]
["Hide here and after"]

{"sheet":"4 - Summary","index":4,"n_rows":35,"n_cols":83,"rows_kept":35,"cut":false,"hidden":false,"merged":[[19,0,19,50],[19,51,19,70],[20,0,20,50],[20,51,20,70],[25,0,25,19],[25,65,25,70],[25,20,25,64],[23,0,23,70],[24,0,24,8],[24,9,24,70],[22,0,22,70],[21,0,21,50],[21,51,21,70],[16,51,16,70],[15,0,15,70],[13,16,13,19],[18,0,18,50],[18,51,18,70],[13,52,13,55],[11,0,11,15],[10,0,10,15],[12,21,12,34],[11,21,11,34],[16,0,16,50],[10,52,10,55],[11,36,11,51],[11,52,11,55],[12,36,12,51],[12,52,12,55],[4,59,4,60],[4,62,4,69],[1,0,5,6],[2,58,2,63],[2,64,2,65],[2,66,2,67],[2,68,2,69],[1,7,2,57],[3,7,5,57],[11,57,11,70],[12,57,12,70],[5,64,5,69],[9,0,9,15],[9,16,9,19],[9,52,9,55],[9,56,9,70],[9,36,9,51],[10,36,10,51],[10,16,10,19],[9,20,9,34],[7,0,7,70],[10,57,10,70],[12,0,12,15],[11,16,11,19],[12,16,12,19],[28,0,28,19],[28,20,28,64],[28,65,28,70],[26,65,26,70],[26,0,26,19],[26,20,26,64],[27,0,27,19],[27,20,27,64],[27,65,27,70],[31,65,31,70],[30,0,30,19],[30,20,30,64],[30,65,30,70],[29,0,29,19],[29,20,29,64],[29,65,29,70],[33,65,33,70],[33,37,33,64],[13,57,13,70],[10,21,10,34],[8,0,8,70],[14,58,14,69],[14,45,14,57],[14,27,14,44],[13,36,13,51],[17,51,17,70],[17,0,17,50],[32,0,32,19],[32,20,32,64],[32,65,32,70],[31,0,31,19],[31,20,31,64]]}
[null,null,null,null,null,null,null,null,null,null,null,null,null,null,null,null,null,null,null,null,null,null,null,null,null,null,null,null,null,null,null,null,null,null,null,null,null,null,null,null,null,null,null,null,null,null,null,null,null,null,null,null,null,null,null,null,null,null,null,null,null,null,null,null,null,null,null,null,null,null,null,null,null,null,null,null,null,null,null,null,null,null,"Hide here and after"]
["AgriStability AgriInvest",null,null,null,null,null,null,{"$f":"AppStab","v":"2022 Statement A"}]
[null,null,null,null,null,null,null,null,null,null,null,null,null,null,null,null,null,null,null,null,null,null,null,null,null,null,null,null,null,null,null,null,null,null,null,null,null,null,null,null,null,null,null,null,null,null,null,null,null,null,null,null,null,null,null,null,null,null,"Operation ",null,null,null,null,null,{"$f":"IF(ISBLANK('1 - Ident'!BL3),\"\",'1 - Ident'!BL3)","v":""},null,"of",null,{"$f":"IF(ISBLANK('1 - Ident'!BP3),\"\",'1 - Ident'!BP3)","v":""}]
[null,null,null,null,null,null,null," Alberta Corporations/Co-operatives/Other Entities"]
[null,null,null,null,null,null,null,null,null,null,null,null,null,null,null,null,null,null,null,null,null,null,null,null,null,null,null,null,null,null,null,null,null,null,null,null,null,null,null,null,null,null,null,null,null,null,null,null,null,null,null,null,null,null,null,null,null,null,null,"PIN",null,{"$f":"'1 - Ident'!S17","v":0},{"$f":"IF(ISBLANK('1 - Ident'!S17),\"\",'1 - Ident'!S17)","v":""}]
[]
[]
["Statement of Farming Activities (if applicable)"]
[]
["Other Items",null,null,null,null,null,null,null,null,null,null,null,null,null,null,null,"Code",null,null,null,"Amount",null,null,null,null,null,null,null,null,null,null,null,null,null,null,null,"Other Items",null,null,null,null,null,null,null,null,null,null,null,null,null,null,null,"Code",null,null,null,"Amount"]
["Gross farming income",null,null,null,null,null,null,null,null,null,null,null,null,null,null,null,9959,null,null,null,"$",{"$f":"'2 - Income'!gincome","v":0},null,null,null,null,null,null,null,null,null,null,null,null,null,null,"Optional inventory adjustments - current year",null,null,null,null,null,null,null,null,null,null,null,null,null,null,null,9941,null,null,null,"+"]
["Total farming expenses",null,null,null,null,null,null,null,null,null,null,null,null,null,null,null,9968,null,null,null,"-",{"$f":"'3 - Expenses'!BV54","v":0},null,null,null,null,null,null,null,null,null,null,null,null,null,null,"Mandatory inventory adjustments - current year",null,null,null,null,null,null,null,null,null,null,null,null,null,null,null,9942,null,null,null,"+"]
["Net farming income (loss) before adjustments",null,null,null,null,null,null,null,null,null,null,null,null,null,null,null,9969,null,null,null,"$",{"$f":"+V11-V12","v":0},null,null,null,null,null,null,null,null,null,null,null,null,null,null,"Net farming income (loss) after adjustments",null,null,null,null,null,null,null,null,null,null,null,null,null,null,null,9944,null,null,null,"=",{"$f":"+V13+BF11+BF12","v":0}]
[null,null,null,null,null,null,null,null,null,null,null,null,null,null,null,null,null,null,null,null,null,null,null,null,null,null,null,null,null,null,null,null,null,null,null,null,"Net farming income (loss) ",null,null,null,null,null,null,null,null,null,null,null,null,null,null,null,9946,null,null,null,"$",{"$f":"BF13","v":0}]
[]
["Shareholder Information"]
["Name of Shareholder",null,null,null,null,null,null,null,null,null,null,null,null,null,null,null,null,null,null,null,null,null,null,null,null,null,null,null,null,null,null,null,null,null,null,null,null,null,null,null,null,null,null,null,null,null,null,null,null,null,null,"AgriStability and AgriInvest Participant Identification Number (PIN) or AFSC ID Number (if applicable)"]
[]
[]
[]
[]
[]
[]
["Partnership Information"]
["Partnership name:"]
["PIN or AFSC ID Number",null,null,null,null,null,null,null,null,null,null,null,null,null,null,null,null,null,null,null,"Partner Name",null,null,null,null,null,null,null,null,null,null,null,null,null,null,null,null,null,null,null,null,null,null,null,null,null,null,null,null,null,null,null,null,null,null,null,null,null,null,null,null,null,null,null,null,"% Share"]
[]
[]
[]
[]
[]
[]
[]
[null,null,null,null,null,null,null,null,null,null,null,null,null,null,null,null,null,null,null,null,null,null,null,null,null,null,null,null,null,null,null,null,null,null,null,null,null,"Total of all partnership % shares must equal 100%",null,null,null,null,null,null,null,null,null,null,null,null,null,null,null,null,null,null,null,null,null,null,null,null,null,null,null,{"$f":"SUM(BN27:BS33)","v":0}]
["Hide here and after"]

{"sheet":"RC4060 Codes","index":5,"n_rows":332,"n_cols":9,"rows_kept":332,"cut":false,"hidden":false,"merged":[]}
["Income - Commodity Sales & Program Payments"]
[]
[null,"2021 Canada-Alberta Hog Recovery Initiative",778,null,402,"2021 CAN-AB Livestock Feed Assistance Initiative Allowable ",776,"2021 CAN-AB Livestock Feed Assistance Initiative Allowable ",776]
[null,"2021 CAN-AB Livestock Feed Assistance Initiative Allowable ",776,null,401,"2021 Canada-Alberta Hog Recovery Initiative",778,"2021 Canada-Alberta Hog Recovery Initiative",778]
[null,"AgriRecovery Drought Assistance Payments Allowable ",774,null,620,"AgriInsurance/production/crop/Hail Insurance - Edible horticulture crops",402,"AgriInsurance/production/crop/Hail Insurance - Edible horticulture crops",402]
[null,"AgriInsurance/production/crop/Hail Insurance - Edible horticulture crops",402,null,3,"AgriInsurance/production/crop/Hail Insurance - Grains, oilseeds and special crops",401,"AgriInsurance/production/crop/Hail Insurance - Grains, oilseeds and special crops",401]
[null,"AgriInsurance/production/crop/Hail Insurance - Grains, oilseeds and special crops",401,null,4,"AgriRecovery Drought Assistance Payments Allowable ",774,"AgriRecovery Drought Assistance Payments Allowable ",774]
[null,"AgriInsurance/production/crop/Hail Insurance - Non-edible horticulture crops.",470,null,25,"Alberta Livestock Price Insurance Programs (CPIP, HPIP)",620,"Alberta Livestock Price Insurance Programs (CPIP, HPIP)",620]
[null,"AgriInsurance/production/crop/Hail Insurance - Other commodities",463,null,132,"Barley",3,"Barley",3]
[null,"Alberta Livestock Price Insurance Programs (CPIP, HPIP)",620,null,375,"Beans (Dry Edible)",4,"Beans (Dry Edible)",4]
[null,"Alpacas",370,null,374,"Beans, Fresh",25,"Beans, Fresh",25]
[null,"Anise",101,null,312,"Bedding Plants",132,"Bedding Plants",132]
[null,"Apples",60,null,350,"Bee By-Products",375,"Bee By-Products",375]
[null,"Apricots",91,null,6,"Bees, Honey",374,"Bees, Honey",374]
[null,"Artichokes",160,null,7,"Bees, Leaf Cutter",312,"Bees, Leaf Cutter",312]
[null,"Arugula / Rocket",195,null,663,"Bison",350,"Bison",350]
[null,"Asparagus",161,null,665,"Borage",6,"Borage",6]
[null,"Barley",3,null,2,"Buckwheat",7,"Buckwheat",7]
[null,"Basil",102,null,8,"Canadian Food Inspection Agency (CFIA) Payment for allowable commodities",663,"Canadian Food Inspection Agency (CFIA) Payment for allowable commodities",663]
[null,"Beans (Dry Edible)",4,null,10,"Canadian Food Inspection Agency (CFIA) Payment for other amounts",665,"Canadian Food Inspection Agency (CFIA) Payment for other amounts",665]
[null,"Beans, Fresh",25,null,382,"Canadian Wheat Board Payments",2,"Canadian Wheat Board Payments",2]
[null,"Bedding Plants",132,null,719,"Canary Seed",8,"Canary Seed",8]
[null,"Bee By-Products",375,null,706,"Cannabis",382,"Cannabis",382]
[null,"Bees, Honey",374,null,720,"Canola",10,"Canola",10]
[null,"Bees, Leaf Cutter",312,null,721,"Cattle, Calves",719,"Cattle, Calves",719]
[null,"Beets",162,null,722,"Cattle, Cows and Bulls",706,"Cattle, Cows and Bulls",706]
[null,"Bison",350,null,233,"Cattle, Fat / Slaughter",720,"Cattle, Fat / Slaughter",720]
[null,"Blackberries",66,null,23,"Cattle, Feeder",721,"Cattle, Feeder",721]
[null,"Blueberries",67,null,366,"Cattle, Purebred Breeding",722,"Cattle, Purebred Breeding",722]
[null,"Bok Choi",163,null,343,"Cherry Tomatoes, Greenhouse",233,"Cherry Tomatoes, Greenhouse",233]
[null,"Borage",6,null,344,"Chick Peas / Garbanzo Beans",23,"Chick Peas / Garbanzo Beans",23]
[null,"Broccoflower",164,null,11,"Chickens",366,"Chickens",366]
[null,"Broccoli",165,null,699,"Chickens, Eggs for Consumption",343,"Chickens, Eggs for Consumption",343]
[null,"Brussels Sprouts",166,null,684,"Chickens, Eggs for Hatching",344,"Chickens, Eggs for Hatching",344]
[null,"Buckwheat",7,null,685,"Corn",11,"Corn",11]
[null,"Cabbage",167,null,686,"COVID-19 - AgriRecovery - Livestock set aside programs",699,"COVID-19 - AgriRecovery - Livestock set aside programs",699]
[null,"Camelina",282,null,687,"COVID-19 - Other assistance payments (allowable income)",687,"COVID-19 - Other assistance payments (allowable income)",687]
[null,"Canadian Food Inspection Agency (CFIA) Payment for allowable commodities",663,null,688,"COVID-19 - Other assistance payments (non-allowable income)",688,"COVID-19 - Other assistance payments (non-allowable income)",688]
[null,"Canadian Food Inspection Agency (CFIA) Payment for other amounts",665,null,234,"COVID-19 - Temporary foreign worker subsidy payments",686,"COVID-19 - Temporary foreign worker subsidy payments",686]
[null,"Canadian Food Inspection Agency (CFIA) Payment for supply managed commodities",664,null,243,"COVID-19 - Wage subsidy payments for arm's length salaries",684,"COVID-19 - Wage subsidy payments for arm's length salaries",684]
[null,"Canadian Wheat Board Payments",2,null,246,"COVID-19 - Wage subsidy payments for non-arm's length salaries",685,"COVID-19 - Wage subsidy payments for non-arm's length salaries",685]
[null,"Canary Seed",8,null,682,"Cucumbers, Greenhouse",234,"Cucumbers, Greenhouse",234]
[null,"Cannabis",382,null,683,"Custom Feedlot Operator (Itemized Invoices) - Qualifying Feed and Protein",243,"Custom Feedlot Operator (Itemized Invoices) - Qualifying Feed and Protein",243]
[null,"Canola",10,null,352,"Custom Feedlot Operator (Non-itemized Invoices) - Qualifying Prepared Feed",246,"Custom Feedlot Operator (Non-itemized Invoices) - Qualifying Prepared Feed",246]
[null,"Cantaloupe",168,null,353,"Dairy Direct Payment Program (DDPP)",683,"Dairy Direct Payment Program (DDPP)",683]
[null,"Caraway Seed",103,null,764,"Dairy Farm Investment Program (DFIP)",682,"Dairy Farm Investment Program (DFIP)",682]
[null,"Carrots",169,null,12,"Deer",352,"Deer",352]
[null,"Cattle, Calves",719,null,13,"Elk",353,"Elk",353]
[null,"Cattle, Cows and Bulls",706,null,14,"Elk Velvet",764,"Elk Velvet",764]
[null,"Cattle, Custom Feedlot Operator Income (Itemized) - Qualifying Feed",243,null,133,"Faba Beans",12,"Faba Beans",12]
[null,"Cattle, Custom Feedlot Operator Income (Non Itemized) - Qualifying Feed",246,null,264,"Field Peas",13,"Field Peas",13]
[null,"Cattle, Custom Feedlot Operator Income (Itemized) - Other feed charges",576,null,15,"Flaxseed",14,"Flaxseed",14]
[null,"Cattle, Prepared Feed - Other Feed Charges (Itemized)",570,null,354,"Flowers and Ornamental Foliage",133,"Flowers and Ornamental Foliage",133]
[null,"Cattle, Prepared Feed and Protein Supplements (Itemized)",46,null,39,"Forage (Including Pellets, Silage)",264,"Forage (Including Pellets, Silage)",264]
[null,"Cattle, Prepared Feed and Purchases (Non Itemized)",571,null,30,"Forage Seed",15,"Forage Seed",15]
[null,"Cattle, Livestock Owners Custom Feeding Expense (Non Itemized)",573,null,129,"Goats",354,"Goats",354]
[null,"Cattle, Livestock Owners Custom Feeding Expense (Itemized) - Qualifying Feed and Protein Supplements",577,null,316,"Grain (Pellets, Screenings, Silage)",39,"Grain (Pellets, Screenings, Silage)",39]
[null,"Cattle, Livestock Owners Custom Feeding Expense (Itemized) - Other",572,null,41,"Hemp",30,"Hemp",30]
[null,"Cattle, Fat / Slaughter",720,null,235,"Honey",129,"Honey",129]
[null,"Cattle, Feeder",721,null,412,"Horses",316,"Horses",316]
[null,"Cattle, Purebred Breeding",722,null,577,"Lentils",41,"Lentils",41]
[null,"Cauliflower",170,null,355,"Lettuce, Greenhouse",235,"Lettuce, Greenhouse",235]
[null,"Celery",171,null,319,"Livestock Feed Insurance Program",412,"Livestock Feed Insurance Program",412]
[null,"Cherries (Sweet, Sour)",92,null,43,"Livestock Owners Custom Feeding Expense (Itemized) Qualifying Feed and Protein Supplements",577,"Llamas",355]
[null,"Cherry Tomatoes, Greenhouse",233,null,24,"Llamas",355,"Milk and Cream (Cattle)",319]
[null,"Chervil",158,null,44,"Milk and Cream (Cattle)",319,"Millet",43]
[null,"Chick Peas / Garbanzo Beans",23,null,45,"Millet",43,"Mixed Grain",24]
[null,"Chicken, Eggs (Non-Supply Managed)",589,null,572,"Mixed Grain",24,"Mustard Seed",44]
[null,"Chickens",366,null,573,"Mustard Seed",44,"Oats",45]
[null,"Chickens (Non-Supply Managed)",590,null,576,"Oats",45,"Other Custom Feeding Income (Itemized)",576]
[null,"Chickens, Eggs for Consumption",343,null,570,"Other Custom Feeding Expenses (Itemized)",572,"Peppers, Greenhouse",236]
[null,"Chickens, Eggs for Hatching",344,null,236,"Other Custom Feeding Expenses (Non Itemized)",573,"Potatoes and By-Products",147]
[null,"Chinchilla",240,null,147,"Other Custom Feeding Income (Itemized)",576,"Prepared Feed and Protein Supplements (Itemized)",46]
[null,"Chinese Vegetables",173,null,46,"Other Feed Charges (Itemized)",570,"Prescribed Drought Region (PDR) - Deferred Bovine Cattle",150]
[null,"Chives",104,null,571,"Peppers, Greenhouse",236,"Private Hail Insurance",407]
[null,"Cilantro",105,null,150,"Potatoes and By-Products",147,"Private Insurance Proceeds for Allowable Commodities",661]
[null,"Collards",174,null,407,"Prepared Feed and Protein Supplements (Itemized)",46,"Private Insurance Proceeds for the Replacement of Allowable Commodities",681]
[null,"Comfrey",106,null,661,"Prepared Feed Purchases (Non Itemized)",571,"Private Insurance proceeds for the replacement of allowable expense items",406]
[null,"Coriander",107,null,681,"Prescribed Drought Region (PDR) - Deferred Bovine Cattle",150,"Quinoa",47]
[null,"Corn",11,null,47,"Private Hail Insurance",407,"Raspberries",71]
[null,"Cover Crop Protection Program",473,null,71,"Private Insurance Proceeds for Allowable Commodities",661,"Rice",48]
[null,"COVID-19 - AgriRecovery - Livestock set aside programs",699,null,48,"Private Insurance Proceeds for the Replacement of Allowable Commodities",681,"Rye",49]
[null,"COVID-19 - Wage subsidy payments for arm's length salaries",684,null,49,"Private Insurance proceeds for the replacement of allowable expense items",406,"Safflower",50]
[null,"COVID-19 - Wage subsidy payments for non-arm's length salaries",685,null,50,"Quinoa",47,"Saskatoon Berries",72]
[null,"COVID-19 - Temporary foreign worker subsidy payments",686,null,72,"Raspberries",71,"Seeds and Bulbs",135]
[null,"COVID-19 - Other assistance payments (allowable income)",687,null,135,"Rice",48,"Semen and Embryos",712]
[null,"COVID-19 - Other assistance payments (non-allowable income)",688,null,712,"Rye",49,"Sheep, Ewes and Rams",734]
[null,"Custom Feedlot Operator (Itemized Invoices) - Qualifying Feed and Protein",243,null,734,"Safflower",50,"Sheep, Lambs",723]
[null,"Custom Feedlot Operator (Non-itemized Invoices) - Qualifying Prepared Feed",246,null,723,"Saskatoon Berries",72,"Shrubs",136]
[null,"Cranberries",68,null,136,"Seeds and Bulbs",135,"Soybeans",53]
[null,"Cucumbers",175,null,53,"Semen and Embryos",712,"Straw",267]
[null,"Cucumbers, Greenhouse",234,null,267,"Sheep, Ewes and Rams",734,"Strawberries",73]
[null,"Cull Breeding Swine Program",582,null,73,"Sheep, Lambs",723,"Sugar Beets (Including Molasses)",268]
[null,"Cumin",144,null,268,"Shrubs",136,"Sunflowers",54]
[null,"Currants (Black, Red)",65,null,54,"Soybeans",53,"Swine",341]
[null,"Dairy Farm Investment Program (DFIP)",682,null,341,"Straw",267,"Tomatoes, Greenhouse",237]
[null,"Dairy Direct Payment Program (DDPP)",683,null,237,"Strawberries",73,"Triticale",55]
[null,"Deer",352,null,55,"Sugar Beets (Including Molasses)",268,"Turkeys",334]
[null,"Dill",108,null,334,"Sunflowers",54,"Waterfowl/Wildlife Damage Compensation - Grains, oilseeds, and special crops",418]
[null,"Dogs (Kennels and Pet Breeding Excluded)",313,null,418,"Swine",341,"Western Livestock Price Insurance Program (WLPIP)",667]
[null,"Donkeys / Mules",367,null,667,"Tomatoes, Greenhouse",237,"Wheat",56]
[null,"Ducks",332,null,56,"Triticale",55,"Wild Boar",247]
[null,"Echinacea",142,null,null,"Turkeys",334,"Wine",88]
[null,"Eggplant",176,null,null,"Waterfowl/Wildlife Damage Compensation - Grains, oilseeds, and special crops",418,"Witloof Chicory",212]
[null,"Elderberries",74,null,null,"Western Livestock Price Insurance Program (WLPIP)",667,"Wood",259]
[null,"Elk",353,null,null,"Wheat",56,"Wool",328]
[null,"Elk Velvet",764,null,null,"Wild Boar",247,"Zucchini",213]
[null,"Emus",373,null,null,"Wine",88]
[null,"Endive",177,null,null,"Witloof Chicory",212]
[null,"Faba Beans",12,null,null,"Wood",259]
[null,"Fennel",110,null,null,"Wool",328]
[null,"Fenugreek",111,null,null,"Zucchini",213]
[null,"Fiddleheads",179]
[null,"Field Peas",13]
[null,"Fireweed",377]
[null,"Fish Meal",263]
[null,"Flaxseed",14]
[null,"Flowers (Edible)",180]
[null,"Flowers and Ornamental Foliage",133]
[null,"Forage (Including Pellets, Silage)",264]
[null,"Forage Seed",15]
[null,"Fox",241]
[null,"Fruit Juice",81]
[null,"Fruits and Vegetables (Non-Edible)",134]
[null,"Garlic",113]
[null,"Geese",333]
[null,"Gherkins",221]
[null,"Gingko Biloba",380]
[null,"Ginseng",114]
[null,"Goats",354]
[null,"Gooseberries",69]
[null,"Grain (Pellets, Screenings, Silage)",39]
[null,"Grapefruit",82]
[null,"Grapes",83]
[null,"Green Peas",223]
[null,"Groundhogs / Hedgehogs",369]
[null,"Haskap",75]
[null,"Hemp",30]
[null,"Honey",129]
[null,"Horseradish",181]
[null,"Horses",316]
[null,"Kale",214]
[null,"Kenaf",317]
[null,"Khorasan Wheat / Kamut",36]
[null,"Kiwi Fruit",84]
[null,"Kohlrabi",182]
[null,"Lathyrus",40]
[null,"Lavender",379]
[null,"Leeks",183]
[null,"Lemon Balm",378]
[null,"Lemons",85]
[null,"Lentils",41]
[null,"Lettuce",184]
[null,"Lettuce, Greenhouse",235]
[null,"Livestock Feed Insurance Program",412]
[null,"Livestock Owners Custom Feeding Expense (Itemized) Qualifying Feed and Protein Supplements",577]
[null,"Llamas",355]
[null,"Loganberries",70]
[null,"Lupins",42]
[null,"Manure",318]
[null,"Maple Products",130]
[null,"Marjoram",115]
[null,"Melons",185]
[null,"Milk and Cream (Cattle)",319]
[null,"Milk and Cream (Non-Supply Managed)",592]
[null,"Millet",43]
[null,"Mink",242]
[null,"Mint",116]
[null,"Mixed Grain",24]
[null,"Monarada",117]
[null,"Mushrooms (Including Spawn)",131]
[null,"Mustard Leaves",186]
[null,"Mustard Seed",44]
[null,"Nectarines",93]
[null,"Niger Seed / Niger Thistle",283]
[null,"Nuts (All)",140]
[null,"Oats",45]
[null,"Other Custom Feeding Income (Itemized)",576]
[null,"Oilseed Radish",38]
[null,"Okra",227]
[null,"Onions",187]
[null,"Oranges",86]
[null,"Oregano",118]
[null,"Ostriches",371]
[null,"Other AgriRecovery Program (allowable income)",627]
[null,"Other AgriRecovery Program (non-allowable income)",632]
[null,"Parsley",119]
[null,"Parsnip",190]
[null,"Partridge",323]
[null,"Peaches",94]
[null,"Pears",95]
[null,"Pepper",120]
[null,"Peppers",191]
[null,"Peppers, Greenhouse",236]
[null,"Pheasants",338]
[null,"Pigeons",327]
[null,"Plums",96]
[null,"Pollination Services Fee",376]
[null,"Pot Bellied Pigs",239]
[null,"Potatoes and By-Products",147]
[null,"Pregnant Mare Urine (PMU)",322]
[null,"Prepared Feed and Protein Supplements (Itemized)",46]
[null,"Prescribed Drought Region (PDR) - Deferred Bison",151]
[null,"Prescribed Drought Region (PDR) - Deferred Bovine Cattle",150]
[null,"Prescribed Drought Region (PDR) - Deferred Deer",154]
[null,"Prescribed Drought Region (PDR) - Deferred Elk",155]
[null,"Prescribed Drought Region (PDR) - Deferred Goat",152]
[null,"Prescribed Drought Region (PDR) - Deferred Horse for PMU Sales",156,null,null,null,null,"\\"]
[null,"Prescribed Drought Region (PDR) - Deferred Other Breeding Animals",157]
[null,"Prescribed Drought Region (PDR) - Deferred Sheep",153]
[null,"Private Hail Insurance",407]
[null,"Private Insurance Proceeds for Allowable Commodities",661]
[null,"Private Insurance Proceeds for the Replacement of Allowable Commodities",681]
[null,"Private Insurance proceeds for the replacement of allowable expense items",406]
[null,"Prunes",97]
[null,"Pumpkins",192]
[null,"Quail",324]
[null,"Quinoa",47]
[null,"Rabbits",356]
[null,"Radish",193]
[null,"Ranch Fur Operators Feed Purchases (Non Itemized)",574]
[null,"Ranch Fur Operators Other Feed Expenses (Itemized)",310]
[null,"Ranch Fur Operators, Prepared Feed and Protein Supplements (Itemized)",46]
[null,"Raspberries",71]
[null,"Reindeer",244]
[null,"Rheas",372]
[null,"Rhubarb",194]
[null,"Rice",48]
[null,"Rosemary",121]
[null,"Rutabagas",197]
[null,"Rye",49]
[null,"Safflower",50]
[null,"Sage",122]
[null,"Salsify",123]
[null,"Saskatchewan Cattle and Hog Support Program",593]
[null,"Saskatchewan Crop Insurance Premium Adjustment",619]
[null,"Saskatoon Berries",72]
[null,"Seabuckthorn",76]
[null,"Seeds and Bulbs",135]
[null,"Semen and Embryos",712]
[null,"Shallots",198]
[null,"Sheep, Ewes and Rams",734]
[null,"Sheep, Lambs",723]
[null,"Shrubs",136]
[null,"Silkies",326]
[null,"Sod",137]
[null,"Soybeans",53]
[null,"Spelt",37]
[null,"Spinach",201]
[null,"Squash",202]
[null,"St. Johns Wort",381]
[null,"Stevia",230]
[null,"Straw",267]
[null,"Strawberries",73]
[null,"Sugar Beets (Including Molasses)",268]
[null,"Summer Savory",125]
[null,"Sunflowers",54]
[null,"Sweet Corn",203]
[null,"Sweet Peas",204]
[null,"Sweet Potatoes / Yams",205]
[null,"Swine",341]
[null,"Swiss Chard",206]
[null,"Taiwanese Chickens",325]
[null,"Tarragon",126]
[null,"Thyme",127]
[null,"Tobacco",269]
[null,"Tomatoes",207]
[null,"Tomatoes, Greenhouse",237]
[null,"Trees (Cultivated Christmas)",138]
[null,"Trees (Fruit and Ornamental)",139]
[null,"Triticale",55]
[null,"Turkey Eggs",342]
[null,"Turkeys",334]
[null,"Turkeys (Non-Supply Managed)",591]
[null,"Turnips",208]
[null,"Vegetable Marrow",209]
[null,"Vegetable Seed (Seed Production Only)",51]
[null,"Watercress",128]
[null,"Waterfowl/Wildlife Damage Compensation - Grains, oilseeds, and special crops",418]
[null,"Waterfowl/Wildlife Damage Compensation - Horticulture",419]
[null,"Waterfowl/Wildlife Damage Compensation - Other commodities",425]
[null,"Watermelon",87]
[null,"Weeds (Edible)",211]
[null,"Western Livestock Price Insurance Program (WLPIP)",667]
[null,"Wheat",56]
[null,"Wild Boar",247]
[null,"Wine",88]
[null,"Witloof Chicory",212]
[null,"Wood",259]
[null,"Wool",328]
[null,"Zucchini",213]
[]
[]
[]
[]
[]
[]
[]
[]
[]
[]
[]
[]
[]
[]
[]
[]
[]
[]
[]
[]
[]
[]
[]
[]
[]
[]
[]
[]
[]
[]
[]
[]
[]
[]
[]
[]
[]
[]
[]
[]
["Expenses - Commodity Purchases and Repayment of Program Benefits"]

{"sheet":"Properties (Data)","index":6,"n_rows":13,"n_cols":2,"rows_kept":13,"cut":false,"hidden":true,"merged":[[0,0,0,1]]}
["Local Properties"]
["Property","Value"]
["Tax Year",2022]
["Email.To","info@afsc.ca"]
["Email.Subject","2021 Statement A"]
["Email.Body"]
["email.cc"]
["email.bcc"]
[]
["PowerUsers"]
["DefaultPDFDir"]
["DeadlineComment"]
["WorkBookName","2021 Statement A"]